bitfinex-derivatives/quotes_SOLF0:USTF0_20250329
["timestamp","ask_amount","ask_price","bid_price","bid_amount"]
[1743274988491,0.05413376,124.75,124.73,0.0588481]
[1743274988794,4.0644,124.8,124.74,30.3]
[1743274988994,5.15210025,124.79,124.74,30.3]
[1743274989294,5.15210025,124.78,124.74,30.3]
[1743274989498,8.017,124.79,124.75,8.0186]
[1743274989690,5.15252574,124.78,124.75,8.0186]
[1743274989989,0.05890347,124.78,124.76,0.05661173]
[1743274990488,5.15234368,124.77,124.76,0.05661173]
[1743274990694,5.15234368,124.77,124.72,30.3]
[1743274990896,17.05052176,124.78,124.72,30.3]
[1743274991096,5.15176771,124.77,124.72,30.3]
[1743274991299,8.0174,124.78,124.72,30.3]
[1743274991502,5.15160977,124.77,124.74,8.0192]
[1743274991790,8.0176,124.78,124.74,8.0192]
[1743274991994,8.0176,124.78,124.74,8.077657]
[1743274991995,5.21355768,124.77,124.74,8.077657]
[1743274992195,0.0600392,124.77,124.74,8.077657]
[1743274992497,0.0600392,124.77,124.75,8.0188]
[1743274993595,0.0600392,124.77,124.75,30.28]
[1743274993996,0.0600392,124.77,124.76,8.0184]
[1743274996499,285.74162176,124.84,124.75,30.28]
[1743274996693,276.7046,124.84,124.76,17.05052176]
[1743274996897,276.7046,124.84,124.76,19.16002176]
[1743274997700,0.05483734,124.81,124.79,0.05742461]
[1743274998001,0.05483734,124.81,124.8,30.28]
[1743274998697,8.07003734,124.81,124.8,30.28]
[1743274999000,8.07003734,124.81,124.79,0.05742461]
[1743275000603,0.05483734,124.81,124.79,0.05742461]
[1743275002304,0.05483734,124.81,124.79,8.07382461]
[1743275003401,8.07003734,124.81,124.79,0.05742461]
[1743275003703,0.05483734,124.81,124.79,0.05742461]
[1743275003901,0.05483734,124.81,124.79,8.07342461]
[1743275004302,0.05483734,124.81,124.8,8.0158]
[1743275006902,0.05483734,124.81,124.79,0.05742461]
[1743275009309,0.05483734,124.81,124.79,8.07362461]
[1743275010105,47.31052176,124.88,124.79,0.05742461]
[1743275010300,5.13261806,124.87,124.78,47.31052176]
[1743275010501,8.0123,124.86,124.82,8.014]
[1743275010805,47.31052176,124.88,124.82,38.274]
[1743275011004,17.05052176,124.88,124.82,38.274]
[1743275011206,0.05291021,124.86,124.84,0.05466262]
[1743275011709,8.06541021,124.86,124.84,0.05466262]
[1743275012311,8.0126,124.85,124.84,0.05466262]
[1743275012809,8.06521021,124.86,124.84,0.05466262]
[1743275013811,0.05291021,124.86,124.84,0.05466262]
[1743275014212,8.06491021,124.86,124.84,0.05466262]
[1743275017310,0.05291021,124.86,124.77,2.162]
[1743275017511,17.05052176,124.84,124.78,30.26]
[1743275017716,17.05052176,124.82,124.77,30.26]
[1743275017918,8.0162,124.8,124.77,8.0174]
[1743275018519,8.0767767,124.8,124.77,8.07164275]
[1743275018718,0.0605767,124.8,124.77,8.07164275]
[1743275019524,17.11109846,124.8,124.77,0.05424275]
[1743275019715,17.05052176,124.78,124.7,2.1041]
[1743275020019,17.05052176,124.8,124.71,30.24]
[1743275020217,281.33052176,124.82,124.72,17.05052176]
[1743275020419,17.05052176,124.84,124.74,17.05052176]
[1743275020615,8.0142,124.83,124.79,8.0161]
[1743275020917,0.05807419,124.82,124.8,30.3180795]
[1743275021215,0.05807419,124.82,124.79,30.26]
[1743275021416,17.05052176,124.86,124.8,0.05716361]
[1743275021625,0.05257799,124.82,124.8,8.0155]
[1743275022121,0.05257799,124.82,124.8,8.07099597]
[1743275023123,0.05257799,124.82,124.8,0.05549597]
[1743275023315,8.0171,124.78,124.74,30.26]
[1743275023714,17.05052176,124.8,124.74,30.26]
[1743275023918,8.0167,124.79,124.74,30.26]
[1743275024523,0.05198769,124.78,124.75,0.05415723]
[1743275024921,0.05198769,124.78,124.76,8.0184]
[1743275025722,0.05198769,124.78,124.77,8.0177]
[1743275025926,17.05052176,124.86,124.77,30.26]
[1743275026126,5.14715687,124.84,124.77,30.26]
[1743275026320,5.14715687,124.84,124.8,8.0154]
[1743275026321,8.0138,124.84,124.8,8.0154]
[1743275026526,19.06402176,124.86,124.81,30.26]
[1743275026726,5.14895239,124.84,124.81,30.26]
[1743275026924,10.0719,124.85,124.81,38.2747]
[1743275027123,5.21158409,124.84,124.81,38.33395029]
[1743275027324,0.05979096,124.84,124.81,38.33395029]
[1743275027728,0.05979096,124.84,124.81,30.31925029]
[1743275028129,0.05979096,124.84,124.83,8.0139]
[1743275028424,11.05849437,124.87,124.82,17.05052176]
[1743275028832,11.05849437,124.87,124.86,8.012]
[1743275029024,11.05849437,124.87,124.86,30.24]
[1743275029328,54.3361775,124.9,124.86,38.2516]
[1743275029527,46.3261775,124.9,124.86,30.24]
[1743275029718,0.05730577,124.89,124.87,0.05899209]
[1743275032329,0.05730577,124.89,124.88,8.0107]
[1743275034831,0.05730577,124.89,124.88,38.2507]
[1743275035030,0.05730577,124.89,124.88,30.24]
[1743275037235,8.06730577,124.89,124.87,0.05899209]
[1743275037426,8.06730577,124.89,118.89,313.08079057]
[1743275037427,0.05730577,124.89,124.83,30.24]
[1743275037630,2.1888,124.89,124.85,8.012]
[1743275037829,17.05052176,124.9,124.83,30.24]
[1743275038130,8.0098,124.9,124.86,8.0115]
[1743275038937,0.05470398,124.89,124.87,0.0616045]
[1743275040444,0.05470398,124.89,124.88,8.0107]
[1743275041035,2.0299,124.97,124.88,8.0]
[1743275041241,2.0299,124.97,124.93,8.0071]
[1743275041436,2.0299,124.97,124.94,30.22]
[1743275042136,2.08432016,124.97,124.94,30.27814984]
[1743275042341,10.08972016,124.97,124.94,30.27814984]
[1743275042633,10.08972016,124.97,124.94,0.05814984]
[1743275042634,2.08432016,124.97,124.94,0.05814984]
[1743275042828,8.0059,124.96,124.94,0.05814984]
[1743275045139,10.08942016,124.97,124.94,0.05814984]
[1743275046438,2.08432016,124.97,124.94,0.05814984]
[1743275046637,0.05442016,124.97,124.94,0.05814984]
[1743275047036,0.05442016,124.97,124.95,8.0058]
[1743275047239,0.05442016,124.97,124.94,30.27814984]
[1743275047735,0.05442016,124.97,124.96,8.0056]
[1743275048545,3.08731741,124.98,124.97,8.0049]
[1743275048742,3.08731741,124.98,124.97,38.2249]
[1743275050941,3.08731741,124.98,124.95,30.2]
[1743275051439,3.14144543,124.99,124.97,17.05052176]
[1743275051639,3.14144543,124.99,124.98,30.2]
[1743275052343,3.14144543,124.99,124.98,38.2043]
[1743275054147,3.14144543,124.99,124.97,0.06057543]
[1743275054645,11.14544543,124.99,124.97,0.06057543]
[1743275054846,3.14144543,124.99,124.97,0.06057543]
[1743275057145,11.14514543,124.99,124.97,0.06057543]
[1743275057552,3.14144543,124.99,124.97,0.06057543]
[1743275058454,5.32284543,124.99,124.97,0.06057543]
[1743275058756,8.0043,124.98,124.97,0.06057543]
[1743275059047,5.32284543,124.99,124.93,30.2]
[1743275059257,5.26809058,124.99,124.93,30.2]
[1743275060152,0.05710594,124.97,124.95,0.05453078]
[1743275060653,8.0056,124.96,124.95,0.05453078]
[1743275061353,0.05710594,124.97,124.95,0.05453078]
[1743275062451,0.05710594,124.97,124.96,30.2]
[1743275065959,8.06200594,124.97,124.95,0.05453078]
[1743275066653,8.0056,124.96,124.95,0.05453078]
[1743275066958,0.05710594,124.97,124.95,0.05453078]
[1743275067159,8.06260594,124.97,124.95,0.05453078]
[1743275070168,0.05710594,124.97,124.95,0.05453078]
[1743275071062,0.05710594,124.97,124.95,8.06073078]
[1743275071658,0.05710594,124.97,124.95,0.05453078]
[1743275071965,0.05710594,124.97,124.96,8.0056]
[1743275072462,0.05710594,124.97,124.95,8.06043078]
[1743275072862,0.05710594,124.97,124.95,0.05453078]
[1743275073057,0.05710594,124.97,124.96,8.0056]
[1743275076863,0.05710594,124.97,124.95,8.06043078]
[1743275077562,8.06210594,124.97,124.95,0.05453078]
[1743275077769,0.05710594,124.97,124.95,0.05453078]
[1743275077965,0.05710594,124.97,124.92,30.2]
[1743275078165,2.19260594,124.97,124.92,30.2]
[1743275078367,8.0059,124.96,124.92,38.2076]
[1743275078563,8.0059,124.96,124.92,30.2]
[1743275078762,2.19260594,124.97,124.92,30.2]
[1743275079267,10.19790594,124.97,124.93,8.06579807]
[1743275079770,8.0056,124.96,124.93,8.06579807]
[1743275079966,2.19260594,124.97,124.94,8.0068]
[1743275081070,10.19790594,124.97,124.94,8.0068]
[1743275081770,8.0056,124.96,124.94,8.0068]
[1743275081971,8.0056,124.96,124.93,30.25879807]
[1743275082270,2.19260594,124.97,124.93,30.25879807]
[1743275082672,2.19260594,124.97,124.94,8.0068]
[1743275082869,2.19260594,124.97,124.93,30.25879807]
[1743275083171,8.0059,124.96,124.93,38.26579807]
[1743275083473,2.19260594,124.97,124.93,30.25879807]
[1743275083664,10.19780594,124.97,124.94,8.0065]
[1743275085470,8.0058,124.96,124.94,8.0065]
[1743275085671,8.0058,124.96,124.93,38.26589807]
[1743275085974,8.0058,124.96,124.93,30.25879807]
[1743275087674,8.0058,124.96,124.93,38.26599807]
[1743275087875,8.0063,124.95,124.93,30.25879807]
[1743275088374,8.0063,124.95,124.93,0.05879807]
[1743275088578,8.0059,124.96,124.93,8.06619807]
[1743275094694,8.0068,124.94,124.93,0.05879807]
[1743275094896,18.90644321,124.94,124.9,30.2]
[1743275095497,18.90644321,124.94,124.91,8.0081]
[1743275095696,10.89964321,124.94,124.91,8.0081]
[1743275095996,10.95243609,124.94,124.91,8.06157378]
[1743275096195,18.95933609,124.94,124.91,8.06157378]
[1743275096997,10.95243609,124.94,124.92,8.008]
[1743275097887,0.05279288,124.94,124.93,30.2]
[1743275098190,10.89964321,125.0,124.93,41.09964321]
[1743275098398,11.05849437,125.01,124.98,8.004]
[1743275099198,11.11522692,125.01,124.98,8.06239606]
[1743275099999,19.11762692,125.01,124.98,8.06239606]
[1743275100199,11.11522692,125.01,124.98,0.05839606]
[1743275100399,11.11522692,125.01,124.98,10.95803927]
[1743275100701,0.05673255,125.01,124.99,8.0036]
[1743275100900,0.05673255,125.01,125.0,30.2]
[1743275101300,0.05673255,125.01,125.0,38.203]
[1743275104907,0.05673255,125.01,125.0,30.2]
[1743275105206,0.05673255,125.01,124.98,30.23839606]
[1743275105398,0.05673255,125.01,125.0,8.003]
[1743275105802,0.05673255,125.01,124.98,30.23839606]
[1743275106002,0.05673255,125.01,124.99,8.0034]
[1743275106599,0.05673255,125.01,125.0,8.003]
[1743275108106,0.05673255,125.01,124.98,0.05839606]
[1743275108303,17.00544537,125.0,124.92,30.18]
[1743275108505,1.9802,124.99,124.92,30.18]
[1743275108804,8.0046,124.98,124.92,30.18]
[1743275109107,1.9802,124.99,124.92,30.18]
[1743275109306,1.9802,124.99,124.96,8.0055]
[1743275109506,0.05251562,124.97,124.94,0.0478706]
[1743275111806,8.0062,124.95,124.94,0.0478706]
[1743275114208,17.00544537,124.94,124.84,178.29485941]
[1743275114408,17.00544537,124.92,124.87,8.0108]
[1743275114608,8.0091,124.91,124.84,178.29485941]
[1743275115012,47.18544537,124.92,124.87,8.0108]
[1743275115306,0.06146329,124.9,124.86,30.18]
[1743275115809,0.06146329,124.9,124.82,30.18]
[1743275115810,17.00544537,124.88,124.82,30.18]
[1743275116010,17.00544537,124.88,124.8,118.62205278]
[1743275116211,8.0131,124.85,124.82,8.0141]
[1743275116411,0.05521963,124.86,124.82,8.0141]
[1743275116612,0.05521963,124.86,124.8,118.62205278]
[1743275117011,8.06751963,124.86,124.8,118.62205278]
[1743275117209,0.05521963,124.86,124.8,118.62205278]
[1743275117413,0.05521963,124.86,124.84,8.0131]
[1743275117614,0.05521963,124.86,124.81,30.18]
[1743275118613,0.05521963,124.86,124.81,32.2099]
[1743275119017,0.05521963,124.86,124.82,17.00544537]
[1743275119211,0.05521963,124.86,124.84,17.00544537]
[1743275119410,0.05521963,124.86,124.85,30.2]
[1743275120713,0.05521963,124.86,124.85,38.2126]
[1743275121211,2.0548,124.92,124.85,30.2]
[1743275121811,10.0633,124.92,124.87,8.0113]
[1743275122220,2.0548,124.92,124.85,30.2]
[1743275122518,17.00544537,124.86,124.79,30.2]
[1743275123110,17.00544537,124.86,124.83,8.0134]
[1743275123312,38.2114,124.87,124.83,8.0134]
[1743275123515,0.05852755,124.86,124.83,8.0134]
[1743275123913,0.05852755,124.86,124.8,30.2]
[1743275124218,0.05852755,124.86,124.8,47.20544537]
[1743275124421,0.05852755,124.86,124.85,8.0126]
[1743275124717,0.05852755,124.86,124.85,38.2126]
[1743275126020,264.0,124.93,124.85,30.2]
[1743275126623,264.0,124.93,124.89,8.0098]
[1743275126624,272.0078,124.93,124.89,8.0098]
[1743275127223,0.05565421,124.92,124.9,0.05191455]
[1743275128823,0.05565421,124.92,124.91,8.0088]
[1743275129222,0.05565421,124.92,124.9,0.05191455]
[1743275130027,0.05565421,124.92,124.9,8.06121455]
[1743275130630,0.05565421,124.92,124.91,8.0088]
[1743275131125,0.05565421,124.92,124.91,38.2088]
[1743275131326,27.03984537,124.98,124.91,30.2]
[1743275131727,27.03984537,124.98,124.94,8.0065]
[1743275132429,0.0539021,124.97,124.95,0.05313013]
[1743275133027,8.0588021,124.97,124.95,0.05313013]
[1743275133324,0.0539021,124.97,124.95,0.05313013]
[1743275134730,8.0592021,124.97,124.95,0.05313013]
[1743275135125,17.00544537,124.96,124.89,2.1979]
[1743275135432,17.00544537,124.96,124.91,8.0084]
[1743275136230,0.05123488,124.95,124.92,0.05520503]
[1743275136431,8.0072,124.94,124.92,0.05520503]
[1743275136928,0.05123488,124.95,124.92,30.25520503]
[1743275138029,0.05123488,124.95,124.94,8.0068]
[1743275139334,2.005,125.01,124.92,47.2606504]
[1743275139529,10.0077,125.01,124.98,8.004]
[1743275139728,2.005,125.01,124.96,30.18]
[1743275139929,17.00544537,125.03,124.96,30.18]
[1743275140128,8.0026,125.01,124.98,8.0039]
[1743275140327,8.0026,125.01,124.96,30.18]
[1743275140532,8.05772592,125.01,124.98,0.05361598]
[1743275141328,0.05512592,125.01,124.98,0.05361598]
[1743275142536,0.05512592,125.01,125.0,8.003]
[1743275142833,0.05512592,125.01,124.99,30.18]
[1743275142834,11.05849437,125.07,124.99,30.18]
[1743275143022,11.05849437,125.07,124.99,32.1905]
[1743275143429,264.04,125.08,124.99,32.1905]
[1743275143933,0.054151,125.05,125.02,0.05193583]
[1743275144234,8.0008,125.04,125.02,0.05193583]
[1743275145130,8.054251,125.05,125.02,0.05193583]
[1743275145537,0.054151,125.05,125.02,0.05193583]
[1743275146032,0.054151,125.05,125.02,38.23323583]
[1743275147226,0.054151,125.05,125.03,8.001]
[1743275147827,0.054151,125.05,125.02,30.23193583]
[1743275148637,0.054151,125.05,125.02,38.23333583]
[1743275150441,0.054151,125.05,125.03,8.0009]
[1743275150644,0.054151,125.05,125.02,30.23193583]
[1743275151340,15.04500772,125.15,125.03,27.21854995]
[1743275151532,15.04500772,125.14,125.04,1.41194549]
[1743275151732,15.04500772,125.15,125.05,32.4125]
[1743275151932,4.1424,125.16,125.06,1.41194549]
[1743275152539,0.0577873,125.12,125.1,0.05981663]
[1743275154037,0.0577873,125.12,125.11,7.996]
[1743275154241,0.0577873,125.12,125.11,38.336]
[1743275157447,0.0577873,125.12,125.1,0.05981663]
[1743275157645,0.0577873,125.12,125.06,30.28]
[1743275158049,7.9963,125.11,125.07,7.9983]
[1743275158243,7.9963,125.11,125.06,30.28]
[1743275158643,7.9963,125.11,125.07,7.9982]
[1743275158846,7.9963,125.11,125.07,8.05585711]
[1743275159047,7.9966,125.1,125.07,8.05585711]
[1743275159552,7.9961,125.11,125.07,8.05585711]
[1743275159945,0.0577873,125.12,125.07,0.05765711]
[1743275160645,7.9973,125.09,125.07,0.05765711]
[1743275160847,7.9973,125.09,125.08,132.66307918]
[1743275161049,0.05888248,125.09,125.08,132.66307918]
[1743275161449,0.05888248,125.09,125.08,126.06827918]
[1743275161647,24.68364841,125.1,125.05,457.72597713]
[1743275162047,7.9992,125.06,125.05,457.72597713]
[1743275162448,30.18,125.08,125.01,30.18]
[1743275162650,7.9995,125.06,125.01,30.18]
[1743275162954,0.05653817,125.06,125.04,7.9998]
[1743275163154,0.05653817,125.06,125.04,30.14]
[1743275163454,0.05653817,125.06,125.05,8.86264948]
[1743275166853,0.05653817,125.06,125.05,16.86244948]
[1743275167655,0.00059523,125.06,125.05,16.86244948]
[1743275171560,0.00059523,125.06,125.05,7.9998]
[1743275171751,7.99979523,125.06,125.05,6.72969133]
[1743275172260,0.00059523,125.06,125.05,6.72969133]
[1743275173061,7.99979523,125.06,125.05,6.72969133]
[1743275173665,7.99979523,125.06,125.05,3.43189133]
[1743275173857,17.30323598,125.07,125.05,224.5370233]
[1743275174457,21.2199914,125.12,125.05,224.5370233]
[1743275174663,2.1,125.12,125.05,224.5370233]
[1743275174963,7.9957,125.12,125.06,16.9888914]
[1743275175164,0.05191918,125.1,125.07,30.51672179]
[1743275175566,0.05191918,125.1,125.09,7.9972]
[1743275177766,0.05191918,125.1,125.09,314.70516661]
[1743275177967,7.9956,125.12,125.09,314.70516661]
[1743275178166,32.4781,125.15,125.09,306.70796661]
[1743275178870,7.9961,125.11,125.09,63.07860688]
[1743275179270,8.04756174,125.11,125.1,9.58022909]
[1743275180263,8.04756174,125.11,125.1,260.49091971]
[1743275180468,8.04756174,125.11,125.1,250.91069062]
[1743275182269,35.22080976,125.11,125.03,331.65769795]
[1743275182575,34.6367,125.1,125.09,103.72825003]
[1743275182766,34.6367,125.1,125.08,38.43685877]
[1743275182961,42.6367,125.1,125.08,38.43685877]
[1743275183366,7.9972,125.09,125.08,38.49250709]
[1743275185370,7.9972,125.09,125.08,0.05564832]
[1743275188773,0.05585147,125.1,125.08,0.05564832]
[1743275189476,0.05585147,125.1,125.09,7.9972]
[1743275189870,118.4540947,125.13,125.09,30.72]
[1743275190164,190.527761,125.14,125.09,30.72]
[1743275190165,190.527761,125.14,125.12,7.9953]
[1743275190673,190.527761,125.14,125.13,7.9947]
[1743275190873,190.527761,125.14,125.09,30.72]
[1743275191073,190.527761,125.14,125.12,0.05322524]
[1743275192274,190.527761,125.14,125.12,8.04822524]
[1743275192471,0.0544867,125.15,125.12,8.04822524]
[1743275192876,8.0479867,125.15,125.12,8.04822524]
[1743275193077,0.0544867,125.15,125.12,0.05322524]
[1743275193576,30.8144867,125.15,125.12,0.05322524]
[1743275194676,7.9947,125.13,125.12,0.05322524]
[1743275195877,7.9967,125.1,125.07,38.7582]
[1743275196079,2.1342,125.14,125.07,30.76]
[1743275196879,2.1342,125.14,125.07,38.758]
[1743275197083,0.05477289,125.12,125.09,0.06156807]
[1743275197281,30.7,125.11,125.03,331.65769795]
[1743275197477,7.9993,125.06,125.03,339.65849795]
[1743275198478,8.05282218,125.06,125.03,339.71746676]
[1743275198678,8.05282218,125.06,125.04,8.0003]
[1743275198977,8.05282218,125.06,125.03,331.71666676]
[1743275199583,8.05282218,125.06,125.03,339.71746676]
[1743275199884,0.05352218,125.06,125.03,331.71666676]
[1743275200082,0.05352218,125.06,125.04,8.0001]
[1743275201587,0.05352218,125.06,125.03,331.71666676]
[1743275202188,8.0001,125.05,125.03,331.71666676]
[1743275202487,0.05352218,125.06,125.03,331.71666676]
[1743275203584,0.05352218,125.06,125.03,339.71736676]
[1743275204686,8.0001,125.05,125.03,331.71666676]
[1743275204886,0.05352218,125.06,125.03,331.71666676]
[1743275205087,8.0001,125.05,125.03,331.71666676]
[1743275205589,8.0001,125.05,125.03,339.71756676]
[1743275205783,8.05292218,125.06,125.03,339.71756676]
[1743275206285,0.05352218,125.06,125.03,331.71666676]
[1743275206489,0.05352218,125.06,125.03,362.29666676]
[1743275206689,0.05352218,125.06,125.05,7.9998]
[1743275206891,0.05352218,125.06,125.03,362.29666676]
[1743275207090,0.05352218,125.06,125.03,30.63896881]
[1743275207292,0.05352218,125.06,125.04,8.0004]
[1743275208498,0.05352218,125.06,125.03,30.63896881]
[1743275209393,0.05352218,125.06,125.04,8.0001]
[1743275209596,0.05352218,125.06,125.03,30.63896881]
[1743275210092,0.05352218,125.06,125.04,8.0]
[1743275210789,0.05352218,125.06,125.03,30.63896881]
[1743275210993,0.05352218,125.06,125.03,0.05896881]
[1743275211294,8.0001,125.05,125.03,0.05896881]
[1743275212391,8.0004,125.04,125.03,0.05896881]
[1743275213692,8.0,125.05,125.03,0.05896881]
[1743275213892,0.05352218,125.06,125.03,0.05896881]
[1743275214294,0.05352218,125.06,125.05,7.9998]
[1743275216295,0.05352218,125.06,125.03,0.05896881]
[1743275216500,8.05292218,125.06,125.03,0.05896881]
[1743275216798,0.05352218,125.06,125.03,0.05896881]
[1743275217389,8.05292218,125.06,125.03,0.05896881]
[1743275218005,0.05352218,125.06,125.03,8.05976881]
[1743275218202,8.05302218,125.06,125.03,8.05976881]
[1743275219403,0.05352218,125.06,125.04,8.0]
[1743275220201,8.05292218,125.06,125.04,8.0]
[1743275221399,8.05292218,125.06,125.03,0.05896881]
[1743275221703,8.05292218,125.06,125.03,8.05966881]
[1743275222499,0.05352218,125.06,125.03,0.05896881]
[1743275223103,0.05352218,125.06,125.04,8.0]
[1743275224204,0.05352218,125.06,125.05,7.9998]
[1743275224707,7.9974,125.09,125.03,30.43896881]
[1743275225005,33.29738974,125.13,125.06,16.99571055]
[1743275225310,29.99988974,125.13,125.12,7.9953]
[1743275226013,0.0523187,125.14,125.11,0.0573693]
[1743275227711,7.9953,125.12,125.11,0.0573693]
[1743275230213,2.2464187,125.14,125.11,0.0573693]
[1743275230915,7.9953,125.12,125.11,0.0573693]
[1743275232919,7.995,125.13,125.11,0.0573693]
[1743275233211,0.0523187,125.14,125.11,0.0573693]
[1743275233418,7.995,125.13,125.11,0.0573693]
[1743275233717,0.0523187,125.14,125.11,0.0573693]
[1743275234114,0.0523187,125.14,125.03,24.16582633]
[1743275234115,16.99571055,125.12,125.03,24.16582633]
[1743275234310,47.19571055,125.12,125.05,30.2]
[1743275234617,7.9985,125.07,125.05,30.2]
[1743275234817,47.19571055,125.12,125.02,16.99571055]
[1743275235013,47.19571055,125.12,125.03,30.2]
[1743275235209,7.9987,125.07,125.04,8.0004]
[1743275235515,0.06003184,125.09,125.06,0.05467522]
[1743275235810,0.0529799,125.09,125.06,0.05467522]
[1743275236715,7.9982,125.08,125.06,0.05467522]
[1743275237314,0.0529799,125.09,125.08,7.9979]
[1743275237521,32.2931,125.17,125.07,4.1985]
[1743275237917,32.2931,125.17,125.1,7.9966]
[1743275238218,149.31890947,125.17,125.1,38.1566]
[1743275238413,16.99571055,125.16,125.1,30.16]
[1743275238609,0.05964506,125.15,125.12,0.06126272]
[1743275239914,7.9947,125.13,125.12,0.06126272]
[1743275240214,47.15571055,125.14,125.06,30.16]
[1743275240408,16.99571055,125.12,125.07,5.45053409]
[1743275240613,16.99571055,125.12,125.08,5.45053409]
[1743275240819,16.99571055,125.12,125.09,5.45053409]
[1743275241018,16.99571055,125.12,125.06,38.1588]
[1743275241214,7.9973,125.09,125.06,38.1588]
[1743275241415,7.9973,125.09,125.08,0.0534726]
[1743275244718,8.04863646,125.1,125.08,0.0534726]
[1743275244919,0.05153646,125.1,125.08,0.0534726]
[1743275245819,7.9972,125.09,125.08,0.0534726]
[1743275246219,0.05153646,125.1,125.08,0.0534726]
[1743275246624,8.04843646,125.1,125.08,0.0534726]
[1743275248025,7.9972,125.09,125.08,0.0534726]
[1743275256227,0.05153646,125.1,125.08,0.0534726]
[1743275257023,0.05153646,125.1,125.09,7.9972]
[1743275263433,0.05153646,125.1,125.08,8.0512726]
[1743275264435,0.05153646,125.1,125.09,8.42070557]
[1743275265033,8.04813646,125.1,125.09,8.42070557]
[1743275265732,8.04813646,125.1,125.08,0.0534726]
[1743275266739,47.20724701,125.1,125.03,30.16]
[1743275266938,47.15571055,125.1,125.03,30.16]
[1743275267136,47.15571055,125.1,125.03,38.1606]
[1743275267332,47.15571055,125.1,125.03,30.16]
[1743275267735,7.9984,125.08,125.03,30.16]
[1743275267932,0.05290243,125.08,125.05,0.05146376]
[1743275268534,7.9992,125.06,125.05,0.05146376]
[1743275273330,7.9988,125.07,125.05,0.05146376]
[1743275274041,7.9992,125.06,125.05,0.05146376]
[1743275280844,18.87981493,125.06,125.05,0.05146376]
[1743275281346,10.93351736,125.08,125.05,0.05146376]
[1743275281546,0.05290243,125.08,125.05,0.05146376]
[1743275282049,0.05290243,125.08,125.07,7.9985]
[1743275282848,7.997,125.1,125.07,38.1585]
[1743275284045,7.9974,125.09,125.07,30.21425603]
[1743275284352,0.06154063,125.1,125.07,0.05425603]
[1743275284745,7.9979,125.08,125.07,0.05425603]
[1743275285547,7.9976,125.09,125.07,0.05425603]
[1743275286851,0.06154063,125.1,125.07,0.05425603]
[1743275287252,7.9973,125.09,125.07,0.05425603]
[1743275288155,7.9973,125.09,125.07,8.05265603]
[1743275288954,8.05844063,125.1,125.07,8.05265603]
[1743275290451,0.06154063,125.1,125.07,0.05425603]
[1743275291154,0.06154063,125.1,125.08,7.9975]
[1743275291551,8.05834063,125.1,125.07,8.05245603]
[1743275292351,7.9975,125.09,125.07,0.05425603]
[1743275292556,0.06154063,125.1,125.07,0.05425603]
[1743275293049,7.9979,125.08,125.07,0.05425603]
[1743275295059,0.06154063,125.1,125.07,30.19425603]
[1743275295555,0.06154063,125.1,125.08,7.9973]
[1743275295956,0.06154063,125.1,125.07,30.19425603]
[1743275296157,8.05814063,125.1,125.07,38.19225603]
[1743275296557,0.06154063,125.1,125.07,38.19225603]
[1743275296856,0.06154063,125.1,125.08,7.9978]
[1743275297560,0.06154063,125.1,125.07,30.19425603]
[1743275298259,0.06154063,125.1,125.09,7.9972]
[1743275300959,0.06154063,125.1,125.08,7.9976]
[1743275301163,0.06154063,125.1,125.07,30.19425603]
[1743275301362,0.06154063,125.1,125.07,0.05425603]
[1743275301564,8.05874063,125.1,125.07,8.05245603]
[1743275301764,0.06154063,125.1,125.07,0.05425603]
[1743275302461,7.9972,125.09,125.07,0.05425603]
[1743275302864,18.87214313,125.09,125.07,0.05425603]
[1743275303060,10.87494313,125.09,125.07,0.05425603]
[1743275303260,0.06154063,125.1,125.07,0.05425603]
[1743275304267,0.06154063,125.1,125.08,7.9974]
[1743275304870,0.06154063,125.1,125.07,0.05425603]
[1743275305462,7.9979,125.08,125.07,0.05425603]
[1743275305666,16.98933652,125.09,125.01,32.3324]
[1743275306357,7.9995,125.06,125.03,8.0008]
[1743275306757,8.0531798,125.06,125.03,8.05442128]
[1743275307471,0.0536798,125.06,125.03,0.05362128]
[1743275309059,8.0004,125.04,125.03,0.05362128]
[1743275311466,8.0023,125.02,124.96,2.098]
[1743275311669,30.14,125.04,124.97,2.028]
[1743275312463,8.0014,125.03,124.99,8.0033]
[1743275312662,0.05778805,125.02,124.99,8.03483919]
[1743275313271,0.05778805,125.02,125.0,8.0027]
[1743275313973,0.05778805,125.02,124.99,8.03483919]
[1743275314173,0.05778805,125.02,124.99,0.03153919]